bitfinex/quotes_BTCUSD_20250716
["timestamp","ask_amount","ask_price","bid_price","bid_amount"]
[1752633589246,0.04502657,117320.0,117310.0,0.73999523]
[1752633589425,0.04502657,117320.0,117310.0,0.73147125]
[1752633590169,0.04502657,117320.0,117310.0,0.73999523]
[1752633590880,0.04502657,117320.0,117310.0,0.74099523]
[1752633591109,0.04502715,117320.0,117310.0,0.74099523]
[1752633591320,0.03650353,117320.0,117310.0,0.74099523]
[1752633592077,0.58559898,117320.0,117310.0,0.70588734]
[1752633592480,0.66212299,117320.0,117310.0,0.72293552]
[1752633592687,0.27808856,117320.0,117310.0,0.72293552]
[1752633592889,0.58559898,117320.0,117310.0,0.7314595]
[1752633593546,0.20156455,117320.0,117310.0,0.73145899]
[1752633593736,0.58559898,117320.0,117310.0,0.73361899]
[1752633593938,0.03109064,117320.0,117310.0,0.74881899]
[1752633594138,0.40660145,117320.0,117310.0,0.74881899]
[1752633594922,0.57707536,117320.0,117310.0,0.73361899]
[1752633595128,0.58559898,117320.0,117310.0,0.73361899]
[1752633595332,0.67064668,117320.0,117310.0,0.73361899]
[1752633595540,0.67064668,117320.0,117310.0,0.73145899]
[1752633595746,0.59412267,117320.0,117310.0,0.73145899]
[1752633595951,0.41512507,117320.0,117310.0,0.73145899]
[1752633596159,0.40660145,117320.0,117310.0,0.73145899]
[1752633596571,0.58559898,117320.0,117310.0,0.73145899]
[1752633596783,0.41512507,117320.0,117310.0,0.73145899]
[1752633597619,0.58559898,117320.0,117310.0,0.73145899]
[1752633597836,1.05218656,117320.0,117310.0,0.2994]
[1752633598057,1.18558656,117320.0,117310.0,0.2994]
[1752633598279,1.18558656,117320.0,117310.0,0.001]
[1752633598723,0.80155213,117320.0,117310.0,0.001]
[1752633600401,0.74207551,117320.0,117310.0,0.001]
[1752633600615,0.35804108,117320.0,117310.0,0.001]
[1752633600829,0.74207551,117320.0,117310.0,0.001]
[1752633602459,1.12610994,117320.0,117310.0,0.001]
[1752633602673,0.74207551,117320.0,117310.0,0.001]
[1752633602888,0.82783513,117320.0,117310.0,0.001]
[1752633604144,0.74207551,117320.0,117310.0,0.001]
[1752633604362,0.74207551,117320.0,117310.0,0.2994]
[1752633605015,0.72627551,117320.0,117310.0,0.46988844]
[1752633605238,0.31787746,117320.0,117310.0,0.48693691]
[1752633605458,0.57707522,117320.0,117310.0,0.49546096]
[1752633605671,0.415125,117320.0,117310.0,0.51928494]
[1752633606134,0.415125,117320.0,117310.0,0.52780885]
[1752633606487,0.58559891,117320.0,117310.0,0.51928494]
[1752633606911,0.58559891,117320.0,117310.0,0.50223691]
[1752633607155,0.6628352,117320.0,117310.0,0.47841278]
[1752633608266,0.57707558,117320.0,117310.0,0.49546125]
[1752633608501,0.57707558,117320.0,117310.0,0.5039853]
[1752633609962,0.57707558,117320.0,117310.0,0.49546125]
[1752633610172,0.59122834,117320.0,117310.0,0.2994]
[1752633610598,0.57582834,117320.0,117310.0,0.2994]
[1752633610813,0.66158796,117320.0,117310.0,0.2994]
[1752633612588,0.67768796,117320.0,117310.0,0.2994]
[1752633613208,0.66158796,117320.0,117310.0,0.2994]
[1752633614069,0.56002834,117320.0,117310.0,0.48891691]
[1752633614273,0.0004,117320.0,117310.0,1.00277553]
[1752633614884,0.0004,117320.0,117310.0,0.6187411]
[1752633615085,0.19856381,117320.0,117310.0,0.60702719]
[1752633615295,0.03661345,117320.0,117310.0,0.75743508]
[1752633616466,0.04513707,117320.0,117310.0,0.75743508]
[1752633616673,0.01956643,117320.0,117310.0,0.75743508]
[1752633616889,0.0004,117320.0,117310.0,0.62726508]
[1752633617131,0.0004,117320.0,117310.0,1.23037913]
[1752633617345,0.0004,117320.0,117310.0,1.14461951]
[1752633617796,0.00892304,117320.0,117310.0,0.76058508]
[1752633618220,0.0004,117320.0,117310.0,0.7765602]
[1752633619151,0.0004,117330.0,117320.0,0.22754411]
[1752633619358,0.0004,117330.0,117320.0,1.10020356]
[1752633619560,0.0004,117330.0,117320.0,0.71935913]
[1752633619884,0.0004,117330.0,117320.0,1.10339356]
[1752633620324,0.0004,117330.0,117320.0,0.71935913]
[1752633620766,0.0004,117330.0,117320.0,1.10339356]
[1752633621582,0.0004,117330.0,117320.0,1.11793441]
[1752633621803,0.0014,117330.0,117320.0,1.11793441]
[1752633622013,0.0014,117330.0,117320.0,1.91818973]
[1752633622221,0.0014,117330.0,117320.0,1.5341553]
[1752633622438,0.0004,117330.0,117320.0,1.5341553]
[1752633623065,0.0004,117330.0,117320.0,1.53167568]
[1752633623506,0.0054,117330.0,117320.0,1.53167568]
[1752633623777,0.0054,117330.0,117320.0,1.39839568]
[1752633623972,0.0054,117330.0,117320.0,1.53167568]
[1752633624387,0.01392246,117330.0,117320.0,1.01436125]
[1752633624589,0.02244506,117330.0,117320.0,0.98384528]
[1752633624793,0.01392246,117330.0,117320.0,0.65978963]
[1752633625036,0.58202923,117330.0,117320.0,0.44267552]
[1752633625264,0.57350663,117330.0,117320.0,0.560357]
[1752633626108,0.57350663,117330.0,117320.0,0.70461002]
[1752633626341,0.57350663,117330.0,117320.0,0.72165697]
[1752633626558,0.58202923,117330.0,117320.0,0.73018022]
[1752633626758,0.59055219,117330.0,117320.0,0.73018022]
[1752633626953,0.20651776,117330.0,117320.0,0.73018022]
[1752633627188,0.19799516,117330.0,117320.0,0.53413611]
[1752633627392,0.24246873,117330.0,117320.0,0.31534583]
[1752633627599,0.25786873,117330.0,117320.0,0.01594583]
[1752633627806,0.25786873,117330.0,117320.0,0.14922583]
[1752633628014,0.63284091,117330.0,117320.0,0.14922583]
[1752633628719,0.62784091,117330.0,117320.0,0.14922583]
[1752633628944,0.25286873,117330.0,117320.0,0.14922583]
[1752633629811,0.62784091,117330.0,117320.0,0.14922583]
[1752633630223,0.25286873,117330.0,117320.0,0.14922583]
[1752633630371,0.62784091,117330.0,117320.0,0.14922583]
[1752633631888,0.59014452,117330.0,117320.0,0.14922583]
[1752633632228,0.21517234,117330.0,117320.0,0.14922583]
[1752633633316,0.21517234,117330.0,117320.0,0.13328]
[1752633633535,0.21517234,117330.0,117320.0,0.14922988]
[1752633634910,0.59014452,117330.0,117320.0,0.14922988]
[1752633635109,0.66620359,117330.0,117320.0,0.14922988]
[1752633635505,0.79944359,117330.0,117320.0,0.01594988]
[1752633636545,0.17899746,117320.0,117310.0,0.32929897]
[1752633636759,0.16976746,117320.0,117310.0,0.14919299]
[1752633636959,0.17829101,117320.0,117310.0,0.31968143]
[1752633637164,0.17829101,117320.0,117310.0,0.32820577]
[1752633637748,0.17829101,117320.0,117310.0,0.14919299]
[1752633638215,0.17829101,117320.0,117310.0,0.31968143]
[1752633638660,0.17829101,117320.0,117310.0,0.13324]
[1752633638882,0.17829101,117320.0,117310.0,0.30372844]
[1752633639129,0.17829101,117320.0,117310.0,0.31225286]
[1752633640661,0.17829101,117320.0,117310.0,0.61165286]
[1752633640875,0.16976746,117320.0,117310.0,0.43264]
[1752633641021,0.16976746,117320.0,117310.0,0.61165278]
[1752633641237,0.16976746,117320.0,117310.0,0.62017705]
[1752633642525,0.16976746,117320.0,117310.0,0.61165278]
[1752633642966,0.16976746,117320.0,117310.0,0.62017705]
[1752633643827,0.16976746,117320.0,117310.0,0.61165278]
[1752633645355,0.16976746,117320.0,117310.0,0.62017705]
[1752633645554,0.16976746,117320.0,117310.0,0.63587705]
[1752633645753,0.16976746,117320.0,117310.0,0.63784705]
[1752633645985,0.16976746,117320.0,117310.0,0.64637125]
[1752633646215,0.16942821,117320.0,117310.0,0.64637125]
[1752633646522,0.16942821,117320.0,117310.0,0.48755844]
[1752633646748,0.54440039,117320.0,117310.0,0.4326]
[1752633647180,0.55355253,117320.0,117310.0,0.4326]
[1752633647397,0.96887685,117320.0,117310.0,0.4326]
[1752633647607,1.05463647,117320.0,117310.0,0.2994]
[1752633647806,0.67051215,117320.0,117310.0,0.2994]
[1752633648009,0.58475253,117320.0,117310.0,0.2994]
[1752633648662,0.96887685,117320.0,117310.0,0.2994]
[1752633649084,0.58475253,117320.0,117310.0,0.2994]
[1752633649313,0.96887685,117320.0,117310.0,0.2994]
[1752633649738,0.18755276,117300.0,117290.0,0.43310641]
[1752633649941,0.71004708,117300.0,117290.0,0.29990641]
[1752633650446,0.74124708,117300.0,117290.0,0.29990641]
[1752633651481,0.74124708,117300.0,117290.0,0.30090641]
[1752633651942,0.22392276,117300.0,117290.0,0.30090641]
[1752633652111,0.78064949,117300.0,117290.0,0.30090641]
[1752633653310,0.74120708,117300.0,117290.0,0.30090641]
[1752633654073,0.60804708,117300.0,117290.0,0.30090641]
[1752633654293,0.57684708,117300.0,117290.0,0.30090641]
[1752633654497,0.71004708,117300.0,117290.0,0.30090641]
[1752633655320,0.71004708,117300.0,117290.0,0.29990641]
[1752633655522,0.7958067,117300.0,117290.0,0.29990641]
[1752633656215,0.77951698,117300.0,117290.0,0.00050641]
[1752633656427,0.91271698,117300.0,117290.0,0.00050641]
[1752633657271,0.8272067,117300.0,117290.0,0.00050641]
[1752633657482,0.71004708,117300.0,117290.0,0.00050641]
[1752633658770,0.74194708,117300.0,117290.0,0.00050641]
[1752633659477,0.57170906,117280.0,117270.0,0.44440641]
[1752633659692,0.57370906,117280.0,117270.0,0.31324641]
[1752633659895,0.64813301,117280.0,117270.0,0.44640641]
[1752633660482,0.57370906,117280.0,117270.0,0.44640641]
[1752633661111,0.17907378,117270.0,117260.0,0.3309]
[1752633661321,0.5651981,117270.0,117260.0,0.55161028]
[1752633661531,0.5651981,117270.0,117260.0,0.53591028]
[1752633661769,0.5682581,117270.0,117260.0,0.53591028]
[1752633662001,0.18960089,117270.0,117260.0,0.71499933]
[1752633662215,0.18960089,117270.0,117260.0,0.73159933]
[1752633662423,0.57372521,117270.0,117260.0,0.73359933]
[1752633662635,0.18960089,117270.0,117260.0,0.73359933]
[1752633663291,0.18960089,117270.0,117260.0,0.42135028]
[1752633663505,0.65095772,117270.0,117260.0,0.42135028]
[1752633663716,0.2668334,117270.0,117260.0,0.42135028]
[1752633663928,0.5651981,117270.0,117260.0,0.42135028]
[1752633664136,0.5651981,117270.0,117260.0,0.59191142]
[1752633664352,0.5651981,117270.0,117260.0,0.6004394]
[1752633664605,0.18107378,117270.0,117260.0,0.6004394]
[1752633664816,0.5651981,117270.0,117260.0,0.6004394]
[1752633665034,0.18107378,117270.0,117260.0,0.6004394]
[1752633665254,0.19612799,117270.0,117260.0,0.62046485]
[1752633665472,0.17359044,117290.0,117270.0,0.17907349]
[1752633665686,0.31220338,117290.0,117280.0,0.21189866]
[1752633665926,0.31220338,117290.0,117280.0,0.22339519]
[1752633666141,0.31220338,117290.0,117280.0,0.24044802]
[1752633666346,0.31220338,117290.0,117280.0,0.21189866]
[1752633666558,0.399963,117290.0,117280.0,0.21189866]
[1752633666767,0.399963,117290.0,117280.0,0.22042519]
[1752633666768,0.31420338,117290.0,117280.0,0.22042519]
[1752633667012,0.31420338,117290.0,117280.0,0.22895164]
[1752633667240,0.31420338,117290.0,117280.0,0.22042519]
[1752633667870,0.31420338,117290.0,117280.0,0.22895164]
[1752633668087,0.31420338,117290.0,117280.0,0.23747802]
[1752633668324,0.31420338,117290.0,117280.0,0.24600433]
[1752633668743,0.31420338,117290.0,117280.0,0.22895164]
[1752633668953,0.30567765,117290.0,117280.0,0.22995164]
[1752633669366,0.30567765,117290.0,117280.0,0.23847802]
[1752633669604,0.39143727,117290.0,117280.0,0.23847802]
[1752633670252,0.00311078,117300.0,117290.0,0.17051752]
[1752633670469,0.32076368,117300.0,117290.0,0.21403448]
[1752633670942,0.32928832,117300.0,117290.0,0.21298332]
[1752633671163,0.32276368,117300.0,117290.0,0.21298332]
[1752633671378,0.18960368,117300.0,117290.0,0.21298332]
[1752633671598,0.573728,117300.0,117290.0,0.22150897]
[1752633671812,0.18960368,117300.0,117290.0,0.22150897]
[1752633672020,0.18960368,117300.0,117290.0,0.23003455]
[1752633672469,0.2753633,117300.0,117290.0,0.23003455]
[1752633672680,0.26683845,117300.0,117290.0,0.22150897]
[1752633672813,0.25831338,117300.0,117290.0,0.34614332]
[1752633673026,0.25831338,117300.0,117290.0,0.35466905]
[1752633673638,0.25831338,117300.0,117290.0,0.3631947]
[1752633673845,0.25831338,117300.0,117290.0,0.37172028]
[1752633674062,0.25831338,117300.0,117290.0,0.3631947]
[1752633674316,0.25831338,117300.0,117290.0,0.35466905]
[1752633675842,0.25831338,117300.0,117290.0,0.34614332]
[1752633676516,0.6424377,117300.0,117290.0,0.34614332]
[1752633677416,0.55667808,117300.0,117290.0,0.35466897]
[1752633677844,0.17255376,117300.0,117290.0,0.35466897]
[1752633679387,0.17255376,117300.0,117290.0,0.34614332]
[1752633679594,0.55973808,117300.0,117290.0,0.01794]
[1752633679797,0.55973808,117300.0,117290.0,0.0159]
[1752633680022,0.6454977,117300.0,117290.0,0.14902]
[1752633680697,0.17904325,117290.0,117280.0,0.39991028]
[1752633680920,0.56822757,117290.0,117280.0,0.71248887]
[1752633681144,0.56822757,117290.0,117280.0,0.72101532]
[1752633681397,0.56822757,117290.0,117280.0,0.72305532]
[1752633681612,0.57672743,117290.0,117280.0,0.73805532]
[1752633681826,0.57672743,117290.0,117280.0,0.7465817]
[1752633682040,0.59377866,117290.0,117280.0,0.75510801]
[1752633682557,0.20965434,117290.0,117280.0,0.75510801]
[1752633682770,0.20112876,117290.0,117280.0,0.75510801]
[1752633683143,0.20112876,117290.0,117280.0,0.41735028]
[1752633683376,0.19566311,117290.0,117280.0,0.71452887]
[1752633683616,0.01661986,117290.0,117280.0,0.65459737]
[1752633683871,0.01905124,117290.0,117280.0,0.67079737]
[1752633684577,0.03610233,117290.0,117280.0,0.67079737]
[1752633685375,0.03410233,117290.0,117280.0,0.67079737]
[1752633685601,0.03410233,117290.0,117280.0,0.67376737]
[1752633685823,0.20461985,117290.0,117280.0,0.67376737]
[1752633686250,0.21314572,117290.0,117280.0,0.67376737]
[1752633686715,0.00852529,117290.0,117280.0,0.67376737]
[1752633686934,0.32068393,117300.0,117290.0,0.2026689]
[1752633687159,0.31215929,117300.0,117290.0,0.20470905]
[1752633687375,0.39791891,117300.0,117290.0,0.20470905]
[1752633687592,0.39791891,117300.0,117290.0,0.2132347]
[1752633687593,0.39991891,117300.0,117290.0,0.2132347]
[1752633688265,0.39991891,117300.0,117290.0,0.22176028]
[1752633688494,0.39991891,117300.0,117290.0,0.23028579]
[1752633689621,0.39991891,117300.0,117290.0,0.23756028]
[1752633689839,0.39991891,117300.0,117290.0,0.24608579]
[1752633690071,0.39991891,117300.0,117290.0,0.23756028]
[1752633690485,0.39991891,117300.0,117290.0,0.24608579]
[1752633690705,0.40844405,117300.0,117290.0,0.24608579]
[1752633691413,0.40844405,117300.0,117290.0,0.22176028]
[1752633691672,0.41139405,117300.0,117290.0,0.22176028]
[1752633691881,0.41139405,117300.0,117290.0,0.23776028]
[1752633692519,0.41139405,117300.0,117290.0,0.2132347]
[1752633692777,0.41139405,117300.0,117290.0,0.20470905]
[1752633693038,0.78699352,117300.0,117290.0,0.2994]
[1752633693215,0.81809352,117300.0,117290.0,0.2994]
[1752633694603,0.80309352,117300.0,117290.0,0.2994]
[1752633694808,0.81889352,117300.0,117290.0,0.2994]
[1752633695805,1.2444038,117300.0,117290.0,0.2994]
[1752633696253,1.2700098,117300.0,117290.0,0.2994]
[1752633698752,0.1961277,117270.0,117260.0,0.66951146]
[1752633698971,0.1961277,117270.0,117260.0,0.75708174]
[1752633699179,0.20465503,117270.0,117260.0,0.74002673]
[1752633699853,0.20465503,117270.0,117260.0,0.75164427]
[1752633701929,0.20465503,117270.0,117260.0,0.74311702]
[1752633702141,0.19612821,117270.0,117260.0,0.7345894]
[1752633702360,0.18956118,117270.0,117260.0,0.7314994]
[1752633702596,0.18956118,117270.0,117260.0,0.65451703]
[1752633702818,0.18956118,117270.0,117260.0,0.66304479]
[1752633703066,0.18760118,117270.0,117260.0,0.66304479]
[1752633703373,0.18760118,117270.0,117260.0,0.66613479]
[1752633704223,0.18760118,117270.0,117260.0,0.65760703]
[1752633704746,0.18760118,117270.0,117260.0,0.67466262]
[1752633705384,0.18760118,117270.0,117260.0,0.66613486]
[1752633706081,0.18956118,117270.0,117260.0,0.64704486]
[1752633706297,0.18956118,117270.0,117260.0,0.4509]
[1752633706298,0.2782708,117270.0,117260.0,0.4509]
[1752633706497,0.65386787,117270.0,117260.0,0.2994]
[1752633706705,0.68476787,117270.0,117260.0,0.2994]
[1752633709003,0.68476787,117270.0,117260.0,0.3014]
[1752633709204,0.68476787,117270.0,117260.0,0.2994]
[1752633709737,0.68476787,117270.0,117260.0,0.3004]
[1752633709952,1.124819,117270.0,117260.0,1e-08]
[1752633710169,5.68626858,117270.0,117260.0,1e-08]
[1752633710811,6.11188758,117270.0,117260.0,1e-08]
[1752633711018,5.71188758,117270.0,117260.0,1e-08]
[1752633711232,5.640354,117270.0,117260.0,1e-08]
[1752633711447,5.773394,117270.0,117260.0,1e-08]
[1752633712165,0.18766475,117230.0,117220.0,0.06864301]
[1752633712376,0.71830893,117230.0,117220.0,0.06864301]
[1752633712599,0.72125893,117230.0,117220.0,0.06864301]
[1752633713244,0.33713461,117230.0,117220.0,0.06864301]
[1752633713493,0.33764218,117230.0,117220.0,0.07070301]
[1752633714350,0.17915016,117220.0,117210.0,0.33279]
[1752633714568,0.26490978,117220.0,117210.0,0.33485]
[1752633714839,0.26981978,117220.0,117210.0,0.30146]
[1752633715101,0.6539441,117220.0,117210.0,0.30146]
[1752633715348,0.6539441,117220.0,117210.0,0.2994]
[1752633715576,0.6539441,117220.0,117210.0,0.002]
[1752633718252,0.26981978,117220.0,117210.0,0.002]
[1752633718467,0.6539441,117220.0,117210.0,0.002]
[1752633718713,0.26981978,117220.0,117210.0,0.002]
[1752633718922,0.17916552,117210.0,117200.0,0.22221217]
[1752633719130,0.31220552,117210.0,117200.0,0.2157399]
[1752633719347,0.31220552,117210.0,117200.0,0.03965]
[1752633719577,0.31220552,117210.0,117200.0,0.33905]
[1752633720283,0.31220552,117210.0,117200.0,0.34105]
[1752633720507,0.31220552,117210.0,117200.0,0.51169846]
[1752633720713,0.31220552,117210.0,117200.0,0.52023088]
[1752633721154,0.31220552,117210.0,117200.0,0.34958242]
[1752633721412,0.31220552,117210.0,117200.0,0.52023088]
[1752633721630,0.18200348,117220.0,117210.0,0.0319]
[1752633721860,0.31412348,117220.0,117210.0,0.03406]
[1752633722090,0.31710348,117220.0,117210.0,0.03406]
[1752633722321,0.7012278,117220.0,117210.0,0.03406]
[1752633722529,0.4028631,117220.0,117210.0,0.03406]
[1752633722766,0.7012278,117220.0,117210.0,0.03406]
[1752633724903,0.18817477,117230.0,117220.0,0.21918076]
[1752633725120,0.32974464,117230.0,117220.0,0.2243209]
[1752633725338,0.32974464,117230.0,117220.0,0.23285157]
[1752633725551,0.32974464,117230.0,117220.0,0.5237209]
[1752633725966,0.40697439,117230.0,117220.0,0.50665934]
[1752633726177,0.41529725,117230.0,117220.0,0.50665934]
[1752633726385,0.32100754,117230.0,117220.0,0.50115934]
[1752633726600,0.32100754,117230.0,117220.0,0.33306]
[1752633726858,0.32303754,117230.0,117220.0,0.33306]
[1752633727145,0.70716186,117230.0,117220.0,0.33306]
[1752633727604,0.79590148,117230.0,117220.0,0.3144]
[1752633727881,0.79590148,117230.0,117220.0,0.2994]
[1752633728763,0.71014186,117230.0,117220.0,0.2994]
[1752633729048,0.71014186,117230.0,117220.0,0.31776]
[1752633729897,0.71014186,117230.0,117220.0,0.2994]
[1752633730129,0.74184186,117230.0,117220.0,0.2994]
[1752633731401,0.18769634,117210.0,117200.0,0.66314467]
[1752633731634,0.15859398,117210.0,117200.0,0.54381658]
[1752633732491,0.00953111,117210.0,117200.0,0.54381658]
[1752633732693,0.14253111,117210.0,117200.0,0.54381658]
[1752633732952,0.15959383,117210.0,117200.0,0.54381658]
[1752633733250,0.16812537,117210.0,117200.0,0.54381658]
[1752633733455,0.15959383,117210.0,117200.0,0.54381658]
[1752633734136,0.16812537,117210.0,117200.0,0.54381658]
[1752633734317,0.15959383,117210.0,117200.0,0.54381658]
[1752633734532,0.02659383,117210.0,117200.0,0.54381658]
[1752633734961,0.20575942,117210.0,117200.0,0.53528467]
[1752633735136,0.23963514,117210.0,117200.0,0.53528467]
[1752633735972,0.20575942,117210.0,117200.0,0.53528467]
[1752633736337,0.20575942,117210.0,117200.0,0.54381665]
[1752633736775,0.19722831,117210.0,117200.0,0.52377277]
[1752633736992,0.19722831,117210.0,117200.0,0.54381709]
[1752633737316,0.18869706,117210.0,117200.0,0.52675323]
[1752633737509,0.22969654,117210.0,117200.0,0.5352855]
[1752633738089,0.23172654,117210.0,117200.0,0.32076]
[1752633738302,0.61029917,117210.0,117200.0,0.3186]
[1752633739373,0.61029917,117210.0,117200.0,0.3024]
[1752633740430,0.64199917,117210.0,117200.0,0.3024]
[1752633741107,0.25787485,117210.0,117200.0,0.3024]
[1752633741331,0.24187485,117210.0,117200.0,0.3024]
[1752633741540,0.61029917,117210.0,117200.0,0.3024]
[1752633742023,0.1766439,117210.0,117200.0,0.51494088]
[1752633742442,0.001,117210.0,117200.0,0.54351727]
[1752633742655,0.001,117210.0,117200.0,0.54351734]
[1752633742866,0.00953111,117210.0,117200.0,1.06917357]
[1752633743069,0.001,117210.0,117200.0,1.06917357]
[1752633743275,0.001,117210.0,117200.0,1.15468385]
[1752633744405,0.001,117210.0,117200.0,0.77055953]
[1752633744606,0.001,117210.0,117200.0,1.15468385]
[1752633744814,0.00953111,117210.0,117200.0,1.15468385]
[1752633745027,0.02157432,117210.0,117200.0,1.15468385]
[1752633745242,0.03010543,117210.0,117200.0,1.15468385]
[1752633745457,0.03010536,117210.0,117200.0,1.15468385]
[1752633745615,0.03010536,117210.0,117200.0,0.77055953]
[1752633745847,0.03010536,117210.0,117200.0,1.15468385]
[1752633746002,0.00953104,117210.0,117200.0,1.15468385]
[1752633746200,0.001,117210.0,117200.0,1.15468385]
[1752633746472,0.001,117210.0,117200.0,0.77055953]
[1752633746630,0.001,117210.0,117200.0,1.15468385]
[1752633746840,0.001,117210.0,117200.0,0.77055953]
[1752633747043,0.001,117210.0,117200.0,1.15468385]
[1752633749774,0.16762749,117230.0,117220.0,0.21181157]
[1752633750025,0.19320261,117230.0,117220.0,0.3298903]
[1752633750286,0.19320261,117230.0,117220.0,0.1968903]
[1752633750532,0.19320261,117230.0,117220.0,0.20542119]
[1752633752114,0.19320261,117230.0,117220.0,0.20642119]
[1752633753231,0.18467252,117230.0,117220.0,0.18935934]
[1752633753668,0.18467252,117230.0,117220.0,0.1978903]
[1752633753883,0.18467252,117230.0,117220.0,0.20642119]
[1752633754385,0.18467252,117230.0,117220.0,0.1978903]
[1752633754562,0.17614236,117230.0,117220.0,0.01874]
[1752633755143,0.17614236,117230.0,117220.0,0.31814]
[1752633760271,0.17614236,117230.0,117220.0,0.4972903]
[1752633760915,0.00050757,117230.0,117220.0,1.01187691]
[1752633761562,0.01756702,117230.0,117220.0,1.01187691]
[1752633761744,0.03462698,117230.0,117220.0,0.62775259]
[1752633761977,0.03462698,117230.0,117220.0,0.64373538]
[1752633762206,0.01756702,117230.0,117220.0,0.64373538]
[1752633762918,0.00903722,117230.0,117220.0,0.64373538]
[1752633763125,0.00050757,117230.0,117220.0,0.729495]
[1752633763373,0.00050757,117230.0,117220.0,1.0278597]
[1752633763916,0.00050757,117230.0,117220.0,1.01187691]
[1752633764361,0.00903715,117230.0,117220.0,1.01187691]
[1752633764822,0.00050757,117230.0,117220.0,1.01187691]
[1752633765574,0.02609726,117230.0,117220.0,0.74365147]
[1752633765810,0.03894181,117230.0,117220.0,0.76071259]
[1752633766560,0.2266067,117230.0,117220.0,0.72658962]
[1752633766776,0.04747175,117230.0,117220.0,0.75218163]
[1752633766988,0.03894181,117230.0,117220.0,0.75218163]
[1752633767191,0.00903722,117230.0,117220.0,0.75218163]
[1752633767701,0.00050757,117230.0,117220.0,0.75218163]
[1752633767917,0.00903722,117230.0,117220.0,0.75218163]
[1752633768789,0.00050757,117230.0,117220.0,0.75218163]
[1752633769216,0.00903722,117230.0,117220.0,0.75218163]
[1752633769417,0.00903715,117230.0,117220.0,0.75218163]
[1752633769944,0.19617809,117240.0,117230.0,0.19619484]
[1752633770145,0.19617809,117240.0,117230.0,0.24726352]
[1752633770346,0.19617809,117240.0,117230.0,0.25042352]
[1752633770751,0.03411642,117240.0,117230.0,0.25895477]
[1752633771182,0.03411642,117240.0,117230.0,0.39191477]
[1752633771422,0.21423617,117240.0,117230.0,0.38338504]
[1752633771624,0.20570732,117240.0,117230.0,0.38338504]
[1752633772300,0.20470732,117240.0,117230.0,0.38022504]
[1752633772648,0.20470732,117240.0,117230.0,0.38122504]
[1752633772850,0.03411708,117240.0,117230.0,0.39291477]
[1752633773056,0.20470732,117240.0,117230.0,0.37693696]
[1752633773447,0.20470732,117240.0,117230.0,0.36840723]
[1752633773646,0.20470732,117240.0,117230.0,0.36524723]
[1752633774764,0.20470732,117240.0,117230.0,0.37693696]
[1752633774962,0.20470732,117240.0,117230.0,0.37377696]
[1752633775690,0.02558757,117240.0,117230.0,0.37377696]
[1752633775869,0.02558757,117240.0,117230.0,0.67317696]
[1752633776311,0.02558757,117240.0,117230.0,0.7505367]
[1752633776520,0.02558757,117240.0,117230.0,0.67633696]
[1752633776877,0.20470724,117240.0,117230.0,0.67633696]
[1752633777290,0.20470724,117240.0,117230.0,0.65927743]
[1752633777454,0.20118817,117240.0,117230.0,0.63971757]
[1752633777838,0.19265903,117240.0,117230.0,0.64824766]
[1752633778237,0.19265903,117240.0,117230.0,0.6567776]
[1752633780749,0.18969903,117240.0,117230.0,0.6567776]
[1752633780954,0.18969903,117240.0,117230.0,0.66530747]
[1752633781163,0.01705879,117240.0,117230.0,0.76726623]
[1752633781307,0.18764903,117240.0,117230.0,0.68150661]
[1752633781512,0.18764903,117240.0,117230.0,0.67297688]
[1752633781513,0.19617854,117240.0,117230.0,0.67297688]
[1752633782407,0.19617854,117240.0,117230.0,0.54001688]
[1752633782623,0.19617854,117240.0,117230.0,0.68146661]
[1752633783382,0.01705836,117240.0,117230.0,0.6814661]
[1752633783591,0.01705836,117240.0,117230.0,0.6844461]
[1752633783592,0.03411665,117240.0,117230.0,0.6844461]
[1752633783800,0.03411665,117240.0,117230.0,0.67591652]
[1752633784009,0.02558729,117240.0,117230.0,0.67591652]
[1752633784218,0.03411665,117240.0,117230.0,0.67591652]
[1752633784435,0.02558729,117240.0,117230.0,0.67591652]
[1752633784655,0.19947162,117250.0,117240.0,0.18764882]
[1752633784872,0.2069904,117250.0,117240.0,0.33121789]
[1752633785092,0.2100704,117250.0,117240.0,0.33121789]
[1752633785339,0.19618691,117250.0,117240.0,0.33419789]
[1752633785539,0.19616167,117250.0,117240.0,0.36529789]
[1752633785750,0.02558598,117250.0,117240.0,0.36231789]
[1752633785965,0.19823167,117250.0,117240.0,0.35378882]
[1752633786193,0.19823167,117250.0,117240.0,0.35437939]
[1752633786429,0.20779471,117250.0,117240.0,0.3714376]
[1752633787054,0.20779471,117250.0,117240.0,0.35544703]
[1752633787275,0.21954874,117240.0,117230.0,0.29955239]
[1752633787492,0.00852885,117240.0,117230.0,1.1155211]
[1752633787714,0.00308,117250.0,117240.0,0.21127789]
[1752633787922,0.01705676,117250.0,117240.0,0.31510817]
[1752633788125,0.02558532,117250.0,117240.0,0.31610817]
[1752633788337,0.02765532,117250.0,117240.0,0.31510817]
[1752633788554,0.00207,117250.0,117240.0,0.341297]
[1752633788764,0.33222522,117260.0,117250.0,0.18763274]
[1752633788978,0.02558336,117260.0,117250.0,0.21348101]
[1752633789179,0.02558336,117260.0,117250.0,0.36280101]
[1752633789830,0.03618134,117260.0,117250.0,0.36280101]
[1752633790815,0.01705494,117260.0,117250.0,0.92117523]
[1752633791040,0.01805494,117260.0,117250.0,0.92117523]
[1752633791267,0.0095274,117260.0,117250.0,0.92117523]
[1752633791481,0.001,117260.0,117250.0,0.92117523]
[1752633792398,0.02558073,117270.0,117260.0,0.22744442]
[1752633792612,0.02558081,117270.0,117260.0,0.22956442]
[1752633792829,0.02558081,117270.0,117260.0,0.23254442]
[1752633793326,0.02558081,117270.0,117260.0,0.22401688]
[1752633793534,0.03410799,117270.0,117260.0,0.23254442]
[1752633793956,0.02558081,117270.0,117260.0,0.23254442]
[1752633794194,0.04263524,117270.0,117260.0,0.23254442]
[1752633794347,0.04263583,117270.0,117260.0,0.23254457]
[1752633794550,0.20465547,117270.0,117260.0,0.23254457]
[1752633794765,0.20465547,117270.0,117260.0,0.23354457]
[1752633795347,0.19612836,117270.0,117260.0,0.23354457]
[1752633795551,0.19612836,117270.0,117260.0,0.22203688]
[1752633796340,0.18760118,117270.0,117260.0,0.22203688]
[1752633798123,0.69073225,117280.0,117270.0,0.1870466]
[1752633798124,0.30352793,117280.0,117270.0,0.1870466]
[1752633798339,0.40634053,117280.0,117270.0,0.19769378]
[1752633798553,0.18766091,117280.0,117270.0,0.33057378]
[1752633798762,0.18766091,117280.0,117270.0,0.34762777]
[1752633798908,0.18766091,117280.0,117270.0,0.35615466]
[1752633799136,0.1961112,117280.0,117270.0,0.37553466]
[1752633799352,0.19616194,117280.0,117270.0,0.34697378]
[1752633799549,0.19823194,117280.0,117270.0,0.34697378]
[1752633799954,0.19823194,117280.0,117270.0,0.3220466]
[1752633800166,0.19278578,117280.0,117270.0,0.3220466]
[1752633800422,0.27101902,117280.0,117270.0,0.3055466]